[Event "*** Qualifier 2: Titled Tuesday 3|2 Blitz"]
[Site "Chess.com"]
[Date "2017.04.11"]
[Round "6"]
[White "Cecile_Haussernot"]
[Black "ShimanovAlex"]
[Result "1-0"]
[WhiteElo "2318"]
[BlackElo "2611"]
[TimeControl "180+2"]
[EndTime "14:22:45 PDT"]
[Termination "Cecile_Haussernot won on time"]

1. e4 {[%clk 0:02:59.2]} 1... c6 {[%clk 0:03:00.3]} 2. d4 {[%clk 0:03:00]} 2...
d5 {[%clk 0:03:01.1]} 3. e5 {[%clk 0:03:00.4]} 3... Bf5 {[%clk 0:03:01.8]} 4. h4
{[%clk 0:03:00.1]} 4... h5 {[%clk 0:03:02.1]} 5. Bd3 {[%clk 0:02:58.9]} 5...
Bxd3 {[%clk 0:03:02.4]} 6. Qxd3 {[%clk 0:03:00.1]} 6... Qa5+ {[%clk 0:03:04]} 7.
Bd2 {[%clk 0:02:55.9]} 7... Qa6 {[%clk 0:03:05.1]} 8. Qb3 {[%clk 0:02:43.2]}
8... e6 {[%clk 0:03:03.4]} 9. Nc3 {[%clk 0:02:41.9]} 9... Ne7 {[%clk 0:02:57.7]}
10. Nf3 {[%clk 0:02:40.7]} 10... Nf5 {[%clk 0:02:57.9]} 11. Ne2 {[%clk
0:02:40.5]} 11... c5 {[%clk 0:02:57.8]} 12. c3 {[%clk 0:02:37.8]} 12... Nc6
{[%clk 0:02:58.4]} 13. a4 {[%clk 0:02:35]} 13... Na5 {[%clk 0:02:16.2]} 14. Qb5+
{[%clk 0:02:23.6]} 14... Qxb5 {[%clk 0:02:17.2]} 15. axb5 {[%clk 0:02:24.9]}
15... Nb3 {[%clk 0:02:19.1]} 16. Ra4 {[%clk 0:02:18.6]} 16... c4 {[%clk
0:02:18.1]} 17. Kd1 {[%clk 0:02:16.2]} 17... Kd7 {[%clk 0:02:14.1]} 18. Nc1
{[%clk 0:02:13.9]} 18... Nxc1 {[%clk 0:02:09.8]} 19. Kxc1 {[%clk 0:02:11.9]}
19... Be7 {[%clk 0:02:08.5]} 20. Kc2 {[%clk 0:02:09.4]} 20... Kc7 {[%clk
0:02:02.9]} 21. g3 {[%clk 0:02:05.1]} 21... Kb6 {[%clk 0:02:02.1]} 22. Rha1
{[%clk 0:02:06.6]} 22... Kxb5 {[%clk 0:02:02.5]} 23. Rxa7 {[%clk 0:02:02.8]}
23... Rxa7 {[%clk 0:02:01.8]} 24. Rxa7 {[%clk 0:02:03.6]} 24... Kb6 {[%clk
0:02:03]} 25. Ra1 {[%clk 0:01:59.7]} 25... Kc6 {[%clk 0:02:02.2]} 26. b3 {[%clk
0:01:57.1]} 26... cxb3+ {[%clk 0:02:02.1]} 27. Kxb3 {[%clk 0:01:58.8]} 27... Rc8
{[%clk 0:02:03.1]} 28. Ne1 {[%clk 0:01:51.4]} 28... b6 {[%clk 0:01:58.6]} 29.
Ra7 {[%clk 0:01:50]} 29... Rc7 {[%clk 0:01:59.3]} 30. Ra8 {[%clk 0:01:48.4]}
30... Kb7 {[%clk 0:01:56.7]} 31. Rh8 {[%clk 0:01:44.2]} 31... Rc8 {[%clk
0:01:50.9]} 32. Rxh5 {[%clk 0:01:43]} 32... Ra8 {[%clk 0:01:51.5]} 33. Rh7
{[%clk 0:01:37.8]} 33... Bf8 {[%clk 0:01:49.4]} 34. h5 {[%clk 0:01:35.4]} 34...
Ne7 {[%clk 0:01:50.4]} 35. h6 {[%clk 0:01:32.1]} 35... gxh6 {[%clk 0:01:46.3]}
36. Rxf7 {[%clk 0:01:31.6]} 36... Kc6 {[%clk 0:01:47.3]} 37. Nd3 {[%clk
0:01:28.6]} 37... Kb5 {[%clk 0:01:48.1]} 38. Nf4 {[%clk 0:01:26.6]} 38... Nc6
{[%clk 0:00:04]} 39. Nxe6 {[%clk 0:01:26]} 39... Ra3+ {[%clk 0:00:04.4]} 40. Kb2
{[%clk 0:01:24.4]} 1-0

[Event "*** Qualifier 2: Titled Tuesday 3|2 Blitz"]
[Site "Chess.com"]
[Date "2017.04.11"]
[Round "6"]
[White "maciek_92"]
[Black "Cayse"]
[Result "1-0"]
[WhiteElo "2544"]
[BlackElo "2604"]
[TimeControl "180+2"]
[EndTime "14:22:45 PDT"]
[Termination "maciek_92 won by resignation"]

1. c4 {[%clk 0:03:02]} 1... e6 {[%clk 0:03:00]} 2. d4 {[%clk 0:03:00.1]} 2...
Nf6 {[%clk 0:02:59.1]} 3. Nf3 {[%clk 0:03:00.1]} 3... d5 {[%clk 0:02:59.7]} 4.
Nc3 {[%clk 0:03:00.5]} 4... Be7 {[%clk 0:03:00.1]} 5. Bf4 {[%clk 0:02:59.4]}
5... O-O {[%clk 0:02:59.8]} 6. e3 {[%clk 0:02:59.7]} 6... Nbd7 {[%clk
0:03:00.7]} 7. Rc1 {[%clk 0:02:54.2]} 7... c6 {[%clk 0:02:59.6]} 8. Qc2 {[%clk
0:02:53.6]} 8... h6 {[%clk 0:02:55.2]} 9. h3 {[%clk 0:02:54.3]} 9... Qa5 {[%clk
0:02:45.2]} 10. a3 {[%clk 0:02:47.6]} 10... Re8 {[%clk 0:02:37.1]} 11. Bh2
{[%clk 0:02:35.8]} 11... dxc4 {[%clk 0:02:24.8]} 12. Bxc4 {[%clk 0:02:37.7]}
12... b5 {[%clk 0:02:25.9]} 13. Bd3 {[%clk 0:02:35.1]} 13... Bb7 {[%clk
0:02:22.7]} 14. O-O {[%clk 0:02:34.5]} 14... Qb6 {[%clk 0:02:23.3]} 15. Ne5
{[%clk 0:02:23.3]} 15... Nxe5 {[%clk 0:02:21.2]} 16. Bxe5 {[%clk 0:02:14.5]}
16... Rec8 {[%clk 0:02:21.3]} 17. Bxf6 {[%clk 0:02:01.6]} 17... Bxf6 {[%clk
0:02:20]} 18. Ne4 {[%clk 0:02:03]} 18... Be7 {[%clk 0:02:20.7]} 19. Nc5 {[%clk
0:02:04.1]} 19... Rab8 {[%clk 0:02:09]} 20. Nd7 {[%clk 0:01:51.2]} 20... Qc7
{[%clk 0:02:09.9]} 21. Nxb8 {[%clk 0:01:52.1]} 21... Qxb8 {[%clk 0:02:11.1]} 22.
Bh7+ {[%clk 0:01:49.4]} 22... Kh8 {[%clk 0:02:10.5]} 23. Be4 {[%clk 0:01:50.9]}
23... a6 {[%clk 0:02:11.6]} 24. Qe2 {[%clk 0:01:51.7]} 24... Qd6 {[%clk
0:02:11.3]} 25. Rc2 {[%clk 0:01:45.8]} 25... e5 {[%clk 0:02:08.9]} 26. Rd1
{[%clk 0:01:40.2]} 26... Re8 {[%clk 0:02:02.5]} 27. Qf3 {[%clk 0:01:39.8]} 27...
Bf6 {[%clk 0:01:45.7]} 28. dxe5 {[%clk 0:01:02.1]} 28... Qxe5 {[%clk 0:01:46.2]}
29. Bxc6 {[%clk 0:01:02]} 29... Rc8 {[%clk 0:01:47.4]} 30. Rdc1 {[%clk
0:00:59.1]} 30... Bxc6 {[%clk 0:01:44.6]} 31. Rxc6 {[%clk 0:00:59.5]} 31... Rd8
{[%clk 0:01:46]} 32. R1c2 {[%clk 0:00:53.7]} 32... Kh7 {[%clk 0:01:41.4]} 33. g3
{[%clk 0:00:53.8]} 33... a5 {[%clk 0:01:40.5]} 34. R6c5 {[%clk 0:00:52.2]} 34...
Qd6 {[%clk 0:01:29.1]} 35. Rxb5 {[%clk 0:00:43.7]} 35... a4 {[%clk 0:01:29.6]}
36. Kg2 {[%clk 0:00:42.4]} 36... Re8 {[%clk 0:01:17.1]} 37. Rd5 {[%clk
0:00:41.8]} 37... Qb6 {[%clk 0:01:16.9]} 38. h4 {[%clk 0:00:36.6]} 38... g6
{[%clk 0:01:12.3]} 39. Rd7 {[%clk 0:00:33.1]} 39... Kg7 {[%clk 0:01:12.4]} 40.
Rcc7 {[%clk 0:00:29.4]} 40... Rf8 {[%clk 0:01:10.9]} 41. Qd5 {[%clk 0:00:30.2]}
1-0

[Event "*** Qualifier 2: Titled Tuesday 3|2 Blitz"]
[Site "Chess.com"]
[Date "2017.04.11"]
[Round "6"]
[White "kleinebeer98"]
[Black "bilelou"]
[Result "0-1"]
[WhiteElo "2465"]
[BlackElo "2358"]
[TimeControl "180+2"]
[EndTime "14:22:50 PDT"]
[Termination "bilelou won by checkmate"]

1. e4 {[%clk 0:02:42.7]} 1... c5 {[%clk 0:02:54.4]} 2. Nf3 {[%clk 0:02:43.5]}
2... d6 {[%clk 0:02:55.8]} 3. d4 {[%clk 0:02:42.4]} 3... cxd4 {[%clk 0:02:57.5]}
4. Nxd4 {[%clk 0:02:44.3]} 4... Nf6 {[%clk 0:02:59.1]} 5. Nc3 {[%clk 0:02:43.6]}
5... a6 {[%clk 0:03:00.7]} 6. Rg1 {[%clk 0:02:45.3]} 6... e5 {[%clk 0:02:58.4]}
7. Nb3 {[%clk 0:02:41.8]} 7... Be6 {[%clk 0:03:00]} 8. f4 {[%clk 0:02:39.4]}
8... exf4 {[%clk 0:02:56.1]} 9. Bxf4 {[%clk 0:02:41.3]} 9... Nc6 {[%clk
0:02:57.5]} 10. Qd2 {[%clk 0:02:31.5]} 10... d5 {[%clk 0:02:08]} 11. O-O-O
{[%clk 0:02:21.3]} 11... Bb4 {[%clk 0:02:03.1]} 12. a3 {[%clk 0:02:10]} 12...
Bxc3 {[%clk 0:01:50.6]} 13. Qxc3 {[%clk 0:02:11.9]} 13... O-O {[%clk 0:01:51.3]}
14. e5 {[%clk 0:01:24.9]} 14... Ne4 {[%clk 0:01:46.3]} 15. Qe3 {[%clk
0:01:26.3]} 15... Rc8 {[%clk 0:01:37.9]} 16. Bd3 {[%clk 0:01:20.5]} 16... f5
{[%clk 0:01:37.2]} 17. exf6 {[%clk 0:01:13.2]} 17... Qxf6 {[%clk 0:01:36.2]} 18.
Rgf1 {[%clk 0:01:14]} 18... Bf5 {[%clk 0:01:36.2]} 19. Kb1 {[%clk 0:01:03.2]}
19... Rfe8 {[%clk 0:01:34.5]} 20. Qb6 {[%clk 0:00:55.8]} 20... Qg6 {[%clk
0:01:31.9]} 21. Qxb7 {[%clk 0:00:36.5]} 21... Re7 {[%clk 0:01:25.8]} 22. Qxa6
{[%clk 0:00:29.6]} 22... Rf8 {[%clk 0:01:23.3]} 23. Qb5 {[%clk 0:00:20.7]} 23...
h6 {[%clk 0:01:20.8]} 24. Qxd5+ {[%clk 0:00:20.4]} 24... Kh7 {[%clk 0:01:21.2]}
25. Bc1 {[%clk 0:00:18.4]} 25... Qxg2 {[%clk 0:01:16.1]} 26. Rxf5 {[%clk
0:00:17.4]} 26... Rd8 {[%clk 0:01:10.8]} 27. Qxc6 {[%clk 0:00:11.3]} 27... Rxd3
{[%clk 0:01:11.7]} 28. Rd5 {[%clk 0:00:06]} 28... Rxd1 {[%clk 0:01:08.7]} 29.
Nd4 {[%clk 0:00:03.1]} 29... Rxc1+ {[%clk 0:01:07.4]} 30. Ka2 {[%clk 0:00:03.4]}
30... Qg1 {[%clk 0:01:01.7]} 31. Rf5 {[%clk 0:00:02]} 31... Nd2 {[%clk
0:01:00.7]} 32. b3 {[%clk 0:00:02.3]} 32... Ra1+ {[%clk 0:01:00.4]} 33. Kb2
{[%clk 0:00:04.2]} 33... Re3 {[%clk 0:00:59.6]} 34. Rg5 {[%clk 0:00:02.3]} 34...
Qc1# {[%clk 0:00:58.9]} 0-1

[Event "*** Qualifier 2: Titled Tuesday 3|2 Blitz"]
[Site "Chess.com"]
[Date "2017.04.11"]
[Round "6"]
[White "FearNoEvil12"]
[Black "jcgs1030"]
[Result "0-1"]
[WhiteElo "2074"]
[BlackElo "2292"]
[TimeControl "180+2"]
[EndTime "14:23:26 PDT"]
[Termination "jcgs1030 won by resignation"]

1. e4 {[%clk 0:03:02]} 1... c5 {[%clk 0:02:56]} 2. Nc3 {[%clk 0:03:02.7]} 2...
d6 {[%clk 0:02:52.4]} 3. f4 {[%clk 0:03:04.1]} 3... g6 {[%clk 0:02:52.2]} 4. Bc4
{[%clk 0:03:05.4]} 4... Nc6 {[%clk 0:02:51.6]} 5. Nf3 {[%clk 0:03:06.4]} 5...
Bg7 {[%clk 0:02:52.6]} 6. f5 {[%clk 0:03:06.9]} 6... Nf6 {[%clk 0:02:48.3]} 7.
d3 {[%clk 0:03:08.3]} 7... gxf5 {[%clk 0:02:20.5]} 8. O-O {[%clk 0:03:07.4]}
8... h6 {[%clk 0:02:15]} 9. Bf4 {[%clk 0:02:51.6]} 9... a6 {[%clk 0:02:10.7]}
10. a4 {[%clk 0:02:51.4]} 10... Qa5 {[%clk 0:02:00.8]} 11. e5 {[%clk 0:02:36.6]}
11... Nh5 {[%clk 0:01:48.5]} 12. Bd2 {[%clk 0:02:10.5]} 12... dxe5 {[%clk
0:01:32.5]} 13. Nd5 {[%clk 0:02:07.8]} 13... Qd8 {[%clk 0:01:30.4]} 14. Nxe5
{[%clk 0:02:05.8]} 14... Nxe5 {[%clk 0:01:30.1]} 15. Qxh5 {[%clk 0:02:04.3]}
15... Nxc4 {[%clk 0:01:27.5]} 16. dxc4 {[%clk 0:02:04.7]} 16... e6 {[%clk
0:01:28.7]} 17. Rae1 {[%clk 0:01:50.5]} 17... Kf8 {[%clk 0:01:26.4]} 18. Rxf5
{[%clk 0:01:28.6]} 18... exf5 {[%clk 0:01:17.1]} 19. Re7 {[%clk 0:01:27.8]}
19... Be6 {[%clk 0:01:13.4]} 20. Rxf7+ {[%clk 0:00:44.6]} 20... Bxf7 {[%clk
0:01:12]} 21. Qxf5 {[%clk 0:00:46.2]} 21... Qc8 {[%clk 0:00:53.8]} 22. Qf3
{[%clk 0:00:42.8]} 22... Qc6 {[%clk 0:00:47.4]} 23. Bf4 {[%clk 0:00:17.8]} 23...
Re8 {[%clk 0:00:41]} 24. h4 {[%clk 0:00:16.6]} 24... b5 {[%clk 0:00:37.2]} 25.
axb5 {[%clk 0:00:16.2]} 25... axb5 {[%clk 0:00:39.1]} 26. b3 {[%clk 0:00:17.4]}
26... bxc4 {[%clk 0:00:38.1]} 27. bxc4 {[%clk 0:00:19.3]} 27... Bd4+ {[%clk
0:00:19]} 28. Kh2 {[%clk 0:00:18.9]} 28... Bf6 {[%clk 0:00:15.7]} 29. Be3 {[%clk
0:00:11.4]} 29... Bg7 {[%clk 0:00:15.3]} 30. Bf4 {[%clk 0:00:09.3]} 30... Bxd5
{[%clk 0:00:14.4]} 31. cxd5 {[%clk 0:00:09.7]} 31... Qf6 {[%clk 0:00:16.1]} 32.
d6 {[%clk 0:00:09.3]} 32... Kg8 {[%clk 0:00:16.7]} 33. d7 {[%clk 0:00:08.5]}
33... Qxh4+ {[%clk 0:00:17.2]} 34. Qh3 {[%clk 0:00:06]} 34... Qxh3+ {[%clk
0:00:17.7]} 35. Kxh3 {[%clk 0:00:07.3]} 35... Rd8 {[%clk 0:00:18.5]} 36. Bd6
{[%clk 0:00:07.2]} 36... Rxd7 {[%clk 0:00:20.4]} 37. Bxc5 {[%clk 0:00:08.5]}
37... Rc7 {[%clk 0:00:21.2]} 0-1

[Event "*** Qualifier 2: Titled Tuesday 3|2 Blitz"]
[Site "Chess.com"]
[Date "2017.04.11"]
[Round "6"]
[White "PowerThinking2650"]
[Black "MyleneFarmer"]
[Result "0-1"]
[WhiteElo "2202"]
[BlackElo "2310"]
[TimeControl "180+2"]
[EndTime "14:23:31 PDT"]
[Termination "MyleneFarmer won by resignation"]

1. e4 {[%clk 0:03:02]} 1... c5 {[%clk 0:02:58.5]} 2. Nf3 {[%clk 0:03:02.4]} 2...
d6 {[%clk 0:02:59.6]} 3. d4 {[%clk 0:03:03.4]} 3... cxd4 {[%clk 0:03:01.5]} 4.
Nxd4 {[%clk 0:03:04.8]} 4... Nf6 {[%clk 0:03:01.8]} 5. Nc3 {[%clk 0:03:06.3]}
5... g6 {[%clk 0:03:02.7]} 6. Bc4 {[%clk 0:03:06.6]} 6... Bg7 {[%clk 0:03:03.6]}
7. Be3 {[%clk 0:03:07.3]} 7... O-O {[%clk 0:03:04.7]} 8. f3 {[%clk 0:03:08.9]}
8... Nc6 {[%clk 0:03:04.5]} 9. Qd2 {[%clk 0:03:10.5]} 9... Bd7 {[%clk
0:03:05.1]} 10. O-O-O {[%clk 0:03:11.5]} 10... Rc8 {[%clk 0:03:05.8]} 11. Bb3
{[%clk 0:03:12.9]} 11... Nxd4 {[%clk 0:03:06.7]} 12. Bxd4 {[%clk 0:03:13.5]}
12... a5 {[%clk 0:03:08.2]} 13. a4 {[%clk 0:03:12.8]} 13... b5 {[%clk 0:03:09]}
14. axb5 {[%clk 0:03:05.8]} 14... a4 {[%clk 0:03:08.9]} 15. Nxa4 {[%clk
0:02:51.7]} 15... Bxb5 {[%clk 0:03:08.9]} 16. Nb6 {[%clk 0:02:48.7]} 16... Rb8
{[%clk 0:03:06.9]} 17. Qa5 {[%clk 0:02:42.2]} 17... Bc6 {[%clk 0:02:48]} 18. Nc4
{[%clk 0:01:20.6]} 18... Qc8 {[%clk 0:02:24.5]} 19. e5 {[%clk 0:01:12.2]} 19...
Ra8 {[%clk 0:02:07.9]} 20. exf6 {[%clk 0:00:57.7]} 20... Rxa5 {[%clk 0:01:52]}
21. Nxa5 {[%clk 0:00:56.2]} 21... Bxf6 {[%clk 0:01:50.7]} 22. Bxf6 {[%clk
0:00:55.4]} 22... exf6 {[%clk 0:01:52.6]} 23. Rxd6 {[%clk 0:00:44.2]} 23... Bb5
{[%clk 0:01:53.7]} 24. Rb6 {[%clk 0:00:21.5]} 24... Bd7 {[%clk 0:01:25]} 25. Rd1
{[%clk 0:00:20.7]} 25... Bf5 {[%clk 0:01:04.3]} 26. Nc6 {[%clk 0:00:20.8]} 26...
Qc7 {[%clk 0:00:59.6]} 27. Ra6 {[%clk 0:00:19.4]} 27... Rc8 {[%clk 0:00:50.7]}
28. Nd4 {[%clk 0:00:14.3]} 28... Bd7 {[%clk 0:00:47.2]} 29. Kb1 {[%clk
0:00:14.1]} 29... Qxh2 {[%clk 0:00:40.3]} 30. Ra7 {[%clk 0:00:15.2]} 30... Qd6
{[%clk 0:00:37.8]} 31. c3 {[%clk 0:00:14.7]} 31... Rb8 {[%clk 0:00:32.2]} 32.
Ba2 {[%clk 0:00:13.9]} 32... Qb6 {[%clk 0:00:30.1]} 33. Bxf7+ {[%clk 0:00:05.6]}
33... Kh8 {[%clk 0:00:28.4]} 34. Bb3 {[%clk 0:00:03.5]} 34... Qxa7 {[%clk
0:00:28.4]} 35. Kc2 {[%clk 0:00:05]} 35... Ba4 {[%clk 0:00:28.9]} 36. Ra1 {[%clk
0:00:04.4]} 36... Bxb3+ {[%clk 0:00:30]} 37. Nxb3 {[%clk 0:00:05.3]} 37... Qf2+
{[%clk 0:00:31.1]} 38. Nd2 {[%clk 0:00:06.5]} 38... Qxg2 {[%clk 0:00:32]} 0-1

[Event "*** Qualifier 2: Titled Tuesday 3|2 Blitz"]
[Site "Chess.com"]
[Date "2017.04.11"]
[Round "6"]
[White "Kacparov"]
[Black "iturrizaga"]
[Result "1-0"]
[WhiteElo "2604"]
[BlackElo "2637"]
[TimeControl "180+2"]
[EndTime "14:23:48 PDT"]
[Termination "Kacparov won on time"]

1. e4 {[%clk 0:03:01.9]} 1... c5 {[%clk 0:03:00.3]} 2. Nf3 {[%clk 0:03:01.5]}
2... g6 {[%clk 0:03:01.9]} 3. d4 {[%clk 0:03:02.3]} 3... cxd4 {[%clk 0:03:03.8]}
4. Nxd4 {[%clk 0:03:03.9]} 4... Nc6 {[%clk 0:03:05]} 5. Nc3 {[%clk 0:03:05.3]}
5... Bg7 {[%clk 0:03:05.5]} 6. Be3 {[%clk 0:03:04.5]} 6... Nf6 {[%clk
0:03:07.1]} 7. Bc4 {[%clk 0:03:04.9]} 7... O-O {[%clk 0:03:08.5]} 8. Bb3 {[%clk
0:03:05.5]} 8... a5 {[%clk 0:03:09.5]} 9. a4 {[%clk 0:03:01.8]} 9... Ng4 {[%clk
0:03:09]} 10. Qxg4 {[%clk 0:03:02.2]} 10... Nxd4 {[%clk 0:03:10.6]} 11. Qd1
{[%clk 0:03:01.1]} 11... Nxb3 {[%clk 0:03:10.8]} 12. cxb3 {[%clk 0:03:03]} 12...
Ra6 {[%clk 0:03:10.6]} 13. O-O {[%clk 0:03:01]} 13... Re6 {[%clk 0:03:09.8]} 14.
Qd3 {[%clk 0:03:00.3]} 14... b6 {[%clk 0:03:04.5]} 15. Rfd1 {[%clk 0:02:57.6]}
15... f5 {[%clk 0:02:51.6]} 16. exf5 {[%clk 0:02:58]} 16... Rxf5 {[%clk
0:02:53.5]} 17. Rd2 {[%clk 0:02:50.9]} 17... Qf8 {[%clk 0:02:46.2]} 18. Rad1
{[%clk 0:02:48]} 18... h6 {[%clk 0:02:39.8]} 19. Qc4 {[%clk 0:02:48.5]} 19...
Kh7 {[%clk 0:02:37.8]} 20. Nd5 {[%clk 0:02:47.5]} 20... Rfe5 {[%clk 0:01:48.5]}
21. h3 {[%clk 0:02:33.6]} 21... Bb7 {[%clk 0:01:48.3]} 22. Nf4 {[%clk
0:02:07.6]} 22... Rc6 {[%clk 0:01:25.3]} 23. Qf1 {[%clk 0:02:08.3]} 23... d6
{[%clk 0:00:48.6]} 24. Qd3 {[%clk 0:01:56]} 24... Qf7 {[%clk 0:00:44.1]} 25. Nd5
{[%clk 0:01:50.6]} 25... Bc8 {[%clk 0:00:26.9]} 26. b4 {[%clk 0:01:07.8]} 26...
axb4 {[%clk 0:00:21.9]} 27. Nxb4 {[%clk 0:01:07]} 27... Rc4 {[%clk 0:00:22.6]}
28. Nd5 {[%clk 0:01:04]} 28... Rxa4 {[%clk 0:00:21.5]} 29. Nxb6 {[%clk 0:01:04]}
29... Bf5 {[%clk 0:00:21.8]} 30. Qf1 {[%clk 0:00:59.9]} 30... Rb4 {[%clk
0:00:15.6]} 31. Nd5 {[%clk 0:00:59.6]} 31... Rbe4 {[%clk 0:00:15.9]} 32. Nc3
{[%clk 0:00:59.4]} 32... Rxe3 {[%clk 0:00:16.5]} 33. fxe3 {[%clk 0:01:00.2]}
33... Rxe3 {[%clk 0:00:18.4]} 34. Nd5 {[%clk 0:00:55.3]} 34... Rg3 {[%clk
0:00:18.2]} 35. Kh1 {[%clk 0:00:51.1]} 35... Be5 {[%clk 0:00:17.3]} 36. Rf2
{[%clk 0:00:44.1]} 36... Qe6 {[%clk 0:00:17.7]} 37. Nf4 {[%clk 0:00:37.8]} 37...
Qb3 {[%clk 0:00:16.1]} 38. Ne2 {[%clk 0:00:33.8]} 38... h5 {[%clk 0:00:07.6]}
39. Nd4 {[%clk 0:00:31.4]} 39... Qb8 {[%clk 0:00:05.2]} 40. Nxf5 {[%clk
0:00:31.9]} 40... Rxh3+ {[%clk 0:00:06.1]} 41. gxh3 {[%clk 0:00:31.9]} 1-0

[Event "*** Qualifier 2: Titled Tuesday 3|2 Blitz"]
[Site "Chess.com"]
[Date "2017.04.11"]
[Round "6"]
[White "MFBerna"]
[Black "MattyDPerrine"]
[Result "0-1"]
[WhiteElo "2136"]
[BlackElo "2293"]
[TimeControl "180+2"]
[EndTime "14:23:52 PDT"]
[Termination "MattyDPerrine won by checkmate"]

1. e4 {[%clk 0:03:02]} 1... c5 {[%clk 0:02:59.6]} 2. Nf3 {[%clk 0:03:02.2]} 2...
g6 {[%clk 0:03:00.8]} 3. c3 {[%clk 0:02:57.7]} 3... Bg7 {[%clk 0:03:01.5]} 4. d4
{[%clk 0:02:58.1]} 4... cxd4 {[%clk 0:03:03.4]} 5. cxd4 {[%clk 0:02:59.9]} 5...
d5 {[%clk 0:03:04.9]} 6. e5 {[%clk 0:02:59.8]} 6... Nc6 {[%clk 0:03:06]} 7. h3
{[%clk 0:03:00.3]} 7... Nh6 {[%clk 0:03:03.2]} 8. Be2 {[%clk 0:02:52.1]} 8...
O-O {[%clk 0:03:03.1]} 9. O-O {[%clk 0:02:52.5]} 9... f6 {[%clk 0:02:59.7]} 10.
exf6 {[%clk 0:02:50.6]} 10... exf6 {[%clk 0:03:01.6]} 11. Nc3 {[%clk 0:02:51.8]}
11... Be6 {[%clk 0:03:00.9]} 12. Bf4 {[%clk 0:02:50.5]} 12... Nf7 {[%clk
0:02:36.1]} 13. Re1 {[%clk 0:02:45.5]} 13... Re8 {[%clk 0:02:28]} 14. Bf1 {[%clk
0:02:38.1]} 14... Nd6 {[%clk 0:02:02.2]} 15. Rc1 {[%clk 0:02:13.5]} 15... Rc8
{[%clk 0:01:57.3]} 16. b3 {[%clk 0:02:06.2]} 16... Bf7 {[%clk 0:01:45.7]} 17.
Rxe8+ {[%clk 0:01:32.2]} 17... Nxe8 {[%clk 0:01:46]} 18. Qd2 {[%clk 0:01:30.3]}
18... Bf8 {[%clk 0:01:29.4]} 19. Na4 {[%clk 0:01:20.1]} 19... Nd6 {[%clk
0:01:19.6]} 20. Nc5 {[%clk 0:01:19.5]} 20... Ne4 {[%clk 0:01:20.5]} 21. Qe3
{[%clk 0:01:11.1]} 21... Nxc5 {[%clk 0:00:55]} 22. dxc5 {[%clk 0:01:13]} 22...
d4 {[%clk 0:00:50.7]} 23. Qd2 {[%clk 0:01:12.2]} 23... Qa5 {[%clk 0:00:15.4]}
24. Qxa5 {[%clk 0:01:09.1]} 24... Nxa5 {[%clk 0:00:17.3]} 25. b4 {[%clk
0:01:06.3]} 25... Nc6 {[%clk 0:00:16.8]} 26. a3 {[%clk 0:01:07.7]} 26... a6
{[%clk 0:00:14.6]} 27. Rd1 {[%clk 0:01:06.6]} 27... Rd8 {[%clk 0:00:12.5]} 28.
Bd3 {[%clk 0:01:04.9]} 28... Bb3 {[%clk 0:00:12.4]} 29. Re1 {[%clk 0:01:03]}
29... Bd5 {[%clk 0:00:12.1]} 30. Nd2 {[%clk 0:01:03.1]} 30... a5 {[%clk
0:00:04.6]} 31. Bc7 {[%clk 0:00:58.9]} 31... Rc8 {[%clk 0:00:03.5]} 32. Bb6
{[%clk 0:00:48]} 32... axb4 {[%clk 0:00:04.5]} 33. axb4 {[%clk 0:00:49.5]} 33...
Nxb4 {[%clk 0:00:06.4]} 34. Bc4 {[%clk 0:00:39]} 34... Bxc4 {[%clk 0:00:07.4]}
35. Nxc4 {[%clk 0:00:39.6]} 35... Bxc5 {[%clk 0:00:08.9]} 36. Bxc5 {[%clk
0:00:37]} 36... Rxc5 {[%clk 0:00:10.8]} 37. Nd6 {[%clk 0:00:38.4]} 37... Re5
{[%clk 0:00:08.9]} 38. Rb1 {[%clk 0:00:36.7]} 38... Nd5 {[%clk 0:00:10]} 39.
Nxb7 {[%clk 0:00:34.3]} 39... d3 {[%clk 0:00:10.8]} 40. Nc5 {[%clk 0:00:35.4]}
40... d2 {[%clk 0:00:09.1]} 41. Kf1 {[%clk 0:00:36.8]} 41... Nc3 {[%clk
0:00:09.9]} 42. Rb8+ {[%clk 0:00:36.4]} 42... Kf7 {[%clk 0:00:09.5]} 43. Rb7+
{[%clk 0:00:36.9]} 43... Kg8 {[%clk 0:00:10.5]} 44. Rb8+ {[%clk 0:00:38]} 44...
Kg7 {[%clk 0:00:11.9]} 45. Rb7+ {[%clk 0:00:35.6]} 45... Kh6 {[%clk 0:00:13]}
46. Rd7 {[%clk 0:00:36.6]} 46... Re1# {[%clk 0:00:13.9]} 0-1